fUSD/lending_fUSD_20250105
["ID","MTS","AMOUNT","RATE_DAILY","PERIOD"]
[347805145,1736118643595,-8.28907622,0.00011899,2]
[347805146,1736118643605,-500.0,0.00011899,2]
[347805147,1736118643614,-403.17092374,0.00011899,2]
[347805148,1736118643626,-203.82907626,0.00011899,2]
[347805149,1736118643635,-500.0,0.00011899,2]
[347805150,1736118643645,-500.0,0.00011899,2]
[347805151,1736118643654,-500.0,0.00011899,2]
[347805152,1736118643663,-274.49056012,0.00011899,2]
[347805153,1736118643674,-225.50943988,0.00011899,2]
[347805154,1736118643684,-500.0,0.00011899,2]
[347805155,1736118643693,-84.11056012,0.00011899,2]
[347805156,1736118643704,-415.88943988,0.00011899,2]
[347805157,1736118643714,-500.0,0.00011899,2]
[347805158,1736118643723,-500.0,0.00011899,2]
[347805160,1736118643732,-500.0,0.00011899,2]
[347805162,1736118643742,-500.0,0.00011899,2]
[347805163,1736118643751,-500.0,0.00011899,2]
[347805164,1736118643761,-500.0,0.00011899,2]
[347805165,1736118643770,-500.0,0.00011899,2]
[347805166,1736118643779,-500.0,0.00011899,2]
[347805167,1736118643789,-501.04401368,0.00011899,2]
[347805168,1736118643798,-500.0,0.00011899,2]
[347805169,1736118643807,-500.0,0.00011899,2]
[347805170,1736118643816,-500.0,0.00011899,2]
[347805171,1736118643826,-500.0,0.00011899,2]
[347805172,1736118643835,-500.0,0.00011899,2]
[347805174,1736118643844,-376.1251607,0.00011899,2]
[347805176,1736118644067,-500.0,0.00011532,2]
[347805177,1736118644078,-500.0,0.00011779,2]
[347805178,1736118644089,-500.0,0.00011806,2]
[347805179,1736118644099,-245.3948393,0.00011899,2]
[347805180,1736118644108,-500.0,0.00011899,2]
[347805181,1736118644118,-500.0,0.00011899,2]
[347805182,1736118644127,-500.0,0.00011899,2]
[347805183,1736118644137,-500.0,0.00011899,2]
[347805184,1736118644146,-500.0,0.00011899,2]
[347805185,1736118644155,-500.0,0.00011899,2]
[347805186,1736118644165,-500.0,0.00011899,2]
[347805187,1736118644174,-500.0,0.00011899,2]
[347805188,1736118644184,-500.0,0.00011899,2]
[347805189,1736118644193,-500.0,0.00011899,2]
[347805190,1736118644203,-500.0,0.00011899,2]
[347805191,1736118644211,-500.0,0.00011899,2]
[347805192,1736118644221,-500.0,0.00011899,2]
[347805193,1736118644230,-500.0,0.00011899,2]
[347805194,1736118644240,-500.0,0.00011899,2]
[347805195,1736118644249,-497.3947607,0.00011899,2]
[347805196,1736118644261,-2.6052393,0.00011899,2]
[347805197,1736118644270,-303.3947607,0.00011899,2]
[347805198,1736118644282,-196.6052393,0.00011899,2]
[347805199,1736118644291,-500.0,0.00011899,2]
[347805200,1736118644300,-500.0,0.00011899,2]
[347805201,1736118644310,-500.0,0.00011899,2]
[347805202,1736118644320,-500.0,0.00011899,2]
[347805203,1736118644330,-500.0,0.00011899,2]
[347805204,1736118644339,-500.0,0.00011899,2]
[347805205,1736118644349,-500.0,0.00011899,2]
[347805206,1736118644358,-500.0,0.00011899,2]
[347805207,1736118644368,-500.0,0.00011899,2]
[347805208,1736118644378,-500.0,0.00011899,2]
[347805209,1736118644387,-500.0,0.00011899,2]
[347805210,1736118644396,-261.77483749,0.00011899,2]
[347805211,1736118644406,-500.0,0.00011899,2]
[347805212,1736118644415,-500.0,0.00011899,2]
[347805213,1736118644425,-514.71,0.00011899,2]
[347805214,1736118644434,-500.0,0.00011899,2]
[347805215,1736118644443,-500.0,0.00011899,2]
[347805216,1736118644452,-500.0,0.00011899,2]
[347805217,1736118644461,-500.0,0.00011899,2]
[347805218,1736118644470,-379.78138293,0.00011899,2]
[347805219,1736118644482,-120.21861707,0.00011899,2]
[347805220,1736118644491,-500.0,0.00011899,2]
[347805221,1736118644500,-500.0,0.00011899,2]
[347805222,1736118644510,-500.0,0.00011899,2]
[347805223,1736118644520,-500.0,0.00011899,2]
[347805224,1736118644529,-500.0,0.00011899,2]
[347805225,1736118644538,-500.0,0.00011899,2]
[347805226,1736118644548,-304.05004737,0.00011899,2]
[347805227,1736118644573,-195.94995263,0.00011899,2]
[347805228,1736118644583,-500.0,0.00011899,2]
[347805229,1736118644593,-500.0,0.00011899,2]
[347805230,1736118644602,-500.0,0.00011899,2]
[347805231,1736118644612,-500.0,0.00011899,2]
[347805232,1736118644621,-500.0,0.00011899,2]
[347805233,1736118644631,-500.0,0.00011899,2]
[347805234,1736118644640,-500.0,0.00011899,2]
[347805235,1736118644649,-500.0,0.00011899,2]
[347805236,1736118644658,-500.0,0.00011899,2]
[347805237,1736118644669,-500.0,0.00011899,2]
[347805238,1736118644678,-422.76177179,0.00011899,2]
[347805239,1736118644690,-77.23822821,0.00011899,2]
[347805240,1736118644699,-500.0,0.00011899,2]
[347805241,1736118644708,-500.0,0.00011899,2]
[347805242,1736118644716,-500.0,0.00011899,2]
[347805243,1736118644726,-500.0,0.00011899,2]
[347805244,1736118644735,-500.0,0.00011899,2]
[347805245,1736118644744,-550.57,0.00011899,2]
[347805246,1736118644754,-500.0,0.00011899,2]
[347805247,1736118644763,-500.0,0.00011899,2]
[347805248,1736118644772,-500.0,0.00011899,2]
[347805249,1736118644783,-500.0,0.00011899,2]
[347805250,1736118644792,-500.0,0.00011899,2]
[347805251,1736118644803,-500.0,0.00011899,2]
[347805252,1736118644813,-500.0,0.00011899,2]
[347805253,1736118644823,-500.0,0.00011899,2]
[347805254,1736118644833,-536.48,0.00011899,2]
[347805255,1736118644842,-500.0,0.00011899,2]
[347805256,1736118644851,-170.08373119,0.00011899,2]
[347805257,1736118644861,-500.0,0.00011899,2]
[347805258,1736118644870,-500.0,0.00011899,2]
[347805259,1736118644882,-500.0,0.00011899,2]
[347805260,1736118644891,-500.0,0.00011899,2]
[347805261,1736118644900,-500.0,0.00011899,2]
[347805262,1736118644909,-500.0,0.00011899,2]
[347805263,1736118644921,-500.0,0.00011899,2]
[347805264,1736118644930,-500.0,0.00011899,2]
[347805265,1736118644939,-500.0,0.00011899,2]
[347805266,1736118644950,-500.0,0.00011899,2]
[347805267,1736118644959,-500.0,0.00011899,2]
[347805268,1736118644968,-500.0,0.00011899,2]
[347805269,1736118644978,-500.0,0.00011899,2]
[347805270,1736118644988,-500.0,0.00011899,2]
[347805271,1736118644998,-500.0,0.00011899,2]
[347805272,1736118645007,-500.0,0.00011899,2]
[347805273,1736118645016,-500.0,0.00011899,2]
[347805274,1736118645025,-470.29200184,0.00011899,2]
[347805275,1736118645043,-29.70799816,0.00011899,2]
[347805276,1736118645052,-500.0,0.00011899,2]
[347805277,1736118645061,-500.0,0.00011899,2]
[347805278,1736118645071,-500.0,0.00011899,2]
[347805279,1736118645081,-500.0,0.00011899,2]
[347805280,1736118645091,-595.09,0.00011899,2]
[347805281,1736118645100,-500.0,0.00011899,2]
[347805282,1736118645110,-500.0,0.00011899,2]
[347805283,1736118645119,-500.0,0.00011899,2]
[347805284,1736118645129,-500.0,0.00011899,2]
[347805285,1736118645138,-500.0,0.00011899,2]
[347805286,1736118645147,-500.0,0.00011899,2]
[347805287,1736118645157,-500.0,0.00011899,2]
[347805288,1736118645166,-500.0,0.00011899,2]
[347805289,1736118645175,-500.0,0.00011899,2]
[347805290,1736118645184,-507.89,0.00011899,2]
[347805291,1736118645193,-500.0,0.00011899,2]
[347805292,1736118645203,-500.0,0.00011899,2]
[347805293,1736118645212,-500.0,0.00011899,2]
[347805294,1736118645222,-500.0,0.00011899,2]
[347805295,1736118645231,-500.0,0.00011899,2]
[347805296,1736118645240,-500.0,0.00011899,2]
[347805297,1736118645249,-500.0,0.00011899,2]
[347805298,1736118645259,-500.0,0.00011899,2]
[347805299,1736118645268,-500.0,0.00011899,2]
[347805300,1736118645278,-500.0,0.00011899,2]
[347805301,1736118645287,-500.0,0.00011899,2]
[347805302,1736118645296,-500.0,0.00011899,2]
[347805303,1736118645306,-500.0,0.00011899,2]
[347805304,1736118645315,-500.0,0.00011899,2]
[347805305,1736118645324,-500.0,0.00011899,2]
[347805306,1736118645334,-500.0,0.00011899,2]
[347805307,1736118645343,-502.81,0.00011899,2]
[347805308,1736118645352,-500.0,0.00011899,2]
[347805309,1736118645361,-500.0,0.00011899,2]
[347805310,1736118645371,-500.0,0.00011899,2]
[347805311,1736118645380,-500.0,0.00011899,2]
[347805312,1736118645389,-500.0,0.00011899,2]
[347805313,1736118645399,-500.0,0.00011899,2]
[347805314,1736118645408,-550.29,0.00011899,2]
[347805315,1736118645418,-500.0,0.00011899,2]
[347805316,1736118645427,-500.0,0.00011899,2]
[347805317,1736118645437,-500.0,0.00011899,2]
[347805318,1736118645446,-500.0,0.00011899,2]
[347805319,1736118645456,-500.0,0.00011899,2]
[347805320,1736118645465,-500.0,0.00011899,2]
[347805321,1736118645474,-500.0,0.00011899,2]
[347805322,1736118645484,-500.0,0.00011899,2]
[347805323,1736118645493,-500.0,0.00011899,2]
[347805324,1736118645503,-500.0,0.00011899,2]
[347805325,1736118645512,-500.0,0.00011899,2]
[347805326,1736118645522,-500.0,0.00011899,2]
[347805327,1736118645531,-500.0,0.00011899,2]
[347805328,1736118645540,-500.0,0.00011899,2]
[347805329,1736118645550,-93.4437095,0.00011899,2]
[347805333,1736118646113,-73.34097643,0.00011899,2]
[347805334,1736118646123,-500.0,0.00011899,2]
[347805335,1736118646132,-226.65902357,0.00011899,2]
[347805336,1736118646144,-273.34097643,0.00011899,2]
[347805337,1736118646154,-500.0,0.00011899,2]
[347805338,1736118646163,-500.0,0.00011899,2]
[347805339,1736118646173,-500.0,0.00011899,2]
[347805340,1736118646182,-500.0,0.00011899,2]
[347805341,1736118646192,-473.39751621,0.00011899,2]
[347805342,1736118646203,-26.60248379,0.00011899,2]
[347805343,1736118646213,-500.0,0.00011899,2]
[347805344,1736118646223,-92.41751621,0.00011899,2]
[347805345,1736118646235,-407.58248379,0.00011899,2]
[347805346,1736118646244,-500.0,0.00011899,2]
[347805347,1736118646253,-500.0,0.00011899,2]
[347805348,1736118646263,-500.0,0.00011899,2]
[347805349,1736118646272,-500.0,0.00011899,2]
[347805350,1736118646281,-500.0,0.00011899,2]
[347805351,1736118646291,-500.0,0.00011899,2]
[347805352,1736118646302,-500.0,0.00011899,2]
[347805353,1736118646312,-500.0,0.00011899,2]
[347805354,1736118646322,-500.0,0.00011899,2]
[347805355,1736118646334,-500.0,0.00011899,2]
[347805356,1736118646343,-500.0,0.00011899,2]
[347805357,1736118646353,-500.0,0.00011899,2]
[347805358,1736118646363,-500.0,0.00011899,2]
[347805359,1736118646372,-500.0,0.00011899,2]
[347805360,1736118646382,-500.0,0.00011899,2]
[347805361,1736118646392,-500.0,0.00011899,2]
[347805362,1736118646402,-500.0,0.00011899,2]
[347805363,1736118646412,-500.0,0.00011899,2]
[347805364,1736118646422,-500.0,0.00011899,2]
[347805365,1736118646432,-500.0,0.00011899,2]
[347805366,1736118646442,-405.26,0.00011899,2]
[347805367,1736118646451,-500.0,0.00011899,2]
[347805369,1736118646643,-500.0,0.00011899,2]
[347805370,1736118646653,-500.0,0.00011899,2]
[347805371,1736118646662,-500.0,0.00011899,2]
[347805372,1736118646672,-500.0,0.00011899,2]
[347805373,1736118646682,-500.0,0.00011899,2]
[347805374,1736118646692,-500.0,0.00011899,2]
[347805375,1736118646701,-500.0,0.00011899,2]
[347805376,1736118646711,-500.0,0.00011899,2]
[347805377,1736118646720,-500.0,0.00011899,2]
[347805378,1736118646730,-500.0,0.00011899,2]
[347805379,1736118646740,-500.0,0.00011899,2]
[347805380,1736118646749,-500.0,0.00011899,2]
[347805381,1736118646759,-500.0,0.00011899,2]
[347805382,1736118646769,-500.0,0.00011899,2]
[347805383,1736118646778,-500.0,0.00011899,2]
[347805384,1736118646788,-500.0,0.00011899,2]
[347805385,1736118646798,-500.0,0.00011899,2]
[347805386,1736118646807,-500.0,0.00011899,2]
[347805387,1736118646817,-500.0,0.00011899,2]
[347805388,1736118646828,-500.0,0.00011899,2]
[347805389,1736118646838,-500.0,0.00011899,2]
[347805390,1736118646847,-500.0,0.00011899,2]
[347805391,1736118646868,-500.0,0.00011899,2]
[347805392,1736118646883,-500.0,0.00011899,2]
[347805393,1736118646893,-500.0,0.00011899,2]
[347805394,1736118646903,-500.0,0.00011899,2]
[347805395,1736118646915,-500.0,0.00011899,2]
[347805396,1736118646926,-500.0,0.00011899,2]
[347805397,1736118646936,-500.0,0.00011899,2]
[347805398,1736118646947,-500.0,0.00011899,2]
[347805399,1736118646957,-500.0,0.00011899,2]
[347805400,1736118646968,-500.0,0.00011899,2]
[347805401,1736118646978,-500.0,0.00011899,2]
[347805402,1736118646988,-500.0,0.00011899,2]
[347805403,1736118646999,-500.0,0.00011899,2]
[347805404,1736118647009,-500.0,0.00011899,2]
[347805405,1736118647019,-500.0,0.00011899,2]
[347805406,1736118647028,-500.0,0.00011899,2]
[347805407,1736118647040,-500.0,0.00011899,2]
[347805408,1736118647049,-500.0,0.00011899,2]
[347805409,1736118647059,-500.0,0.00011899,2]
[347805410,1736118647070,-500.0,0.00011899,2]
[347805411,1736118647081,-500.0,0.00011899,2]
[347805412,1736118647091,-500.0,0.00011899,2]
[347805413,1736118647101,-500.0,0.00011899,2]
[347805414,1736118647110,-500.0,0.00011899,2]
[347805415,1736118647120,-500.0,0.00011899,2]
[347805416,1736118647129,-500.0,0.00011899,2]
[347805417,1736118647139,-500.0,0.00011899,2]
[347805418,1736118647148,-500.0,0.00011899,2]
[347805419,1736118647157,-500.0,0.00011899,2]
[347805420,1736118647166,-500.0,0.00011899,2]
[347805421,1736118647176,-500.0,0.00011899,2]
[347805422,1736118647186,-628.12,0.00011899,2]
[347805423,1736118647195,-500.0,0.00011899,2]
[347805424,1736118647205,-500.0,0.00011899,2]
[347805425,1736118647214,-500.0,0.00011899,2]
[347805426,1736118647224,-500.0,0.00011899,2]
[347805427,1736118647233,-500.0,0.00011899,2]
[347805428,1736118647242,-500.0,0.00011899,2]
[347805429,1736118647251,-562.11,0.00011899,2]
[347805430,1736118647262,-500.0,0.00011899,2]
[347805431,1736118647271,-500.0,0.00011899,2]
[347805432,1736118647281,-500.0,0.00011899,2]
[347805433,1736118647290,-500.0,0.00011899,2]
[347805434,1736118647299,-500.0,0.00011899,2]
[347805435,1736118647308,-500.0,0.00011899,2]
[347805436,1736118647318,-500.0,0.00011899,2]
[347805437,1736118647328,-500.0,0.00011899,2]
[347805438,1736118647338,-500.0,0.00011899,2]
[347805439,1736118647347,-500.0,0.00011899,2]
[347805440,1736118647357,-488.52,0.00011899,2]
[347805441,1736118647366,-500.0,0.00011899,2]
[347805442,1736118647375,-500.0,0.00011899,2]
[347805443,1736118647385,-608.05,0.00011899,2]
[347805444,1736118647394,-500.0,0.00011899,2]
[347805445,1736118647404,-500.0,0.00011899,2]
[347805446,1736118647413,-500.0,0.00011899,2]
[347805447,1736118647423,-452.59,0.00011899,2]
[347805448,1736118647432,-500.0,0.00011899,2]
[347805449,1736118647441,-500.0,0.00011899,2]
[347805450,1736118647451,-500.0,0.00011899,2]
[347805451,1736118647460,-541.48,0.00011899,2]
[347805452,1736118647469,-500.0,0.00011899,2]
[347805453,1736118647480,-500.0,0.00011899,2]
[347805454,1736118647489,-500.0,0.00011899,2]
[347805455,1736118647499,-104.35582956,0.00011899,2]
[347805456,1736118647720,-395.64417044,0.00011899,2]
[347805457,1736118647730,-500.0,0.00011899,2]
[347805458,1736118647740,-8684.35582956,0.000119,2]
[347805459,1736118647752,-132373.62417044,0.000119,2]
[347805460,1736118647762,-500.0,0.000119,2]
[347805461,1736118647772,-290.658471,0.000119,2]
[347805462,1736118647780,-376.59317606,0.000119,2]
[347805463,1736118647790,-166.60393877,0.000119,2]
[347805464,1736118647799,-76077.50059374,0.000119,2]
[347805465,1736118647809,-620.59334356,0.000119,2]
[347805466,1736118647818,-222.66472991,0.000119,2]
[347805467,1736118647829,-209.10860044,0.000119,2]
[347805468,1736118647839,-597.48882194,0.000119,2]
[347805469,1736118647848,-500.0,0.00011904,2]
[347805470,1736118647858,-2000.0,0.00011904,2]
[347805471,1736118647867,-200.0,0.00011904,2]
[347805472,1736118647879,-630.94,0.00011904,2]
[347805473,1736118647889,-500.0,0.00011904,2]
[347805474,1736118647899,-500.0,0.00011914,2]
[347805475,1736118647908,-500.0,0.00011914,2]
[347805476,1736118647919,-518.52,0.00011914,2]
[347805477,1736118647928,-1767.42,0.00011914,2]
[347805478,1736118647938,-1085.32,0.00011914,2]
[347805479,1736118647949,-234.66,0.00011914,2]
[347805480,1736118647959,-500.0,0.00011914,2]
[347805481,1736118647969,-500.0,0.00011914,2]
[347805482,1736118647978,-500.0,0.00011914,2]
[347805483,1736118647989,-500.0,0.00011914,2]
[347805484,1736118647998,-500.0,0.00011914,2]
[347805485,1736118648008,-534.19,0.00011914,2]
[347805486,1736118648017,-500.0,0.00011914,2]
[347805487,1736118648027,-171.3492859,0.00011934,2]
[347805488,1736118648036,-150.0,0.00011935,2]
[347805489,1736118648045,-376.59317604,0.0001195,2]
[347805490,1736118648056,-150.0,0.00011973,2]
[347805491,1736118648066,-150.0,0.00011973,2]
[347805492,1736118648076,-150.0,0.00011973,2]
[347805493,1736118648087,-150.0,0.00011973,2]
[347805494,1736118648097,-150.0,0.00011973,2]
[347805495,1736118648107,-262.03688478,0.00011973,2]
[347805496,1736118648116,-150.0,0.00011973,2]
[347805497,1736118648126,-500.0,0.00011973,2]
[347805498,1736118648135,-500.0,0.0001198,2]
[347805499,1736118648145,-500.0,0.0001198,2]
[347805500,1736118648155,-500.0,0.0001198,2]
[347805501,1736118648165,-240.631721,0.0001198,2]
[347805502,1736118648174,-998.75,0.0001198,2]
[347805503,1736118648184,-2003.28,0.0001199,2]
[347805504,1736118648195,-2475.9367391,0.00011995,2]
[347805505,1736118648205,-787.62963384,0.00011995,2]
[347805506,1736118648215,-6776.9654567,0.00011995,2]
[347805507,1736118648224,-157.00503,0.00011999,2]
[347805508,1736118648234,-500.0,0.00011999,2]
[347805509,1736118648243,-7500.0,0.00011999,2]
[347805510,1736118648253,-500.0,0.00011999,2]
[347805511,1736118648262,-500.0,0.00011999,2]
[347805512,1736118648272,-500.0,0.00011999,2]
[347805513,1736118648282,-597.14,0.00011999,2]
[347805514,1736118648291,-500.0,0.00011999,2]
[347805515,1736118648301,-500.0,0.00011999,2]
[347805516,1736118648311,-879.03,0.00011999,2]
[347805517,1736118648321,-500.0,0.00011999,2]
[347805518,1736118648331,-1707.13,0.00011999,2]
[347805519,1736118648340,-1827.73,0.00011999,2]
[347805520,1736118648350,-500.0,0.00011999,2]
[347805521,1736118648360,-682.78,0.00011999,2]
[347805522,1736118648369,-1260.76,0.00011999,2]
[347805523,1736118648379,-1097.0,0.00012,2]
[347805524,1736118648388,-28195.77644173,0.00012,2]
[347805525,1736118648398,-82035.32710886,0.00012,2]
[347805526,1736118648410,-6790.23518807,0.00012,2]
[347805527,1736118648422,-9755.49695,0.00012,2]
[347805528,1736118648434,-378.8694,0.00012,2]
[347805529,1736118648445,-455.38002,0.00012,2]
[347805530,1736118648456,-1257.18660747,0.00012,2]
[347805614,1736119832426,-1057.0,8.414e-05,2]
[347805615,1736119832437,-782.43,8.466e-05,2]
[347805616,1736119832446,-1057.0,8.857e-05,2]
[347805617,1736119832455,-1057.0,9.323e-05,2]
[347805618,1736119832464,-5190.18839632,9.771e-05,2]
[347805619,1736119832475,-2.13072285,9.771e-05,2]
[347805620,1736119832486,-426.08023847,9.772e-05,2]
[347805621,1736119832498,-2921.43080863,9.772e-05,2]
[347805622,1736119832508,-22581.14601737,9.772e-05,2]
[347805623,1736119832520,-9370.34368812,9.772e-05,2]
[347805624,1736119832531,-1891.03060736,9.772e-05,2]
[347805625,1736119832543,-21552.57401757,9.772e-05,2]
[347805626,1736119832553,-3347.5110471,9.772e-05,2]
[347805627,1736119832563,-5192.31911917,9.772e-05,2]
[347805628,1736119832572,-55395.09433042,9.772e-05,2]
[347805629,1736119832582,-337.71411042,9.772e-05,2]
[347805630,1736119832591,-55395.09433042,9.774e-05,2]
[347805631,1736119832601,-5192.31911917,9.775e-05,2]
[347805632,1736119832610,-337.71411042,9.777e-05,2]
[347805633,1736119832620,-17446.26791014,9.778e-05,2]
[347805634,1736119832629,-200.0,9.779e-05,2]
[347805635,1736119832639,-55395.09433042,9.78e-05,2]
[347805636,1736119832648,-5192.31911917,9.78e-05,2]
[347805637,1736119832657,-11630.84527343,9.782e-05,2]
[347805638,1736119832667,-200.0,9.782e-05,2]
[347805639,1736119832676,-11630.84527343,9.782e-05,2]
[347805640,1736119832686,-5192.31911917,9.784e-05,2]
[347805641,1736119832695,-17446.26791014,9.785e-05,2]
[347805642,1736119832705,-3347.5110471,9.786e-05,2]
[347805643,1736119832715,-3347.5110471,9.786e-05,2]
[347805644,1736119832724,-3347.5110471,9.788e-05,2]
[347805645,1736119832734,-3347.5110471,9.792e-05,2]
[347805646,1736119832743,-17446.26791014,9.793e-05,2]
[347805647,1736119832752,-337.71411042,9.794e-05,2]
[347805648,1736119832761,-55395.09433042,9.795e-05,2]
[347805649,1736119832771,-55395.09433042,9.795e-05,2]
[347805650,1736119832780,-337.71411042,9.795e-05,2]
[347805651,1736119832789,-200.0,9.796e-05,2]
[347805652,1736119832799,-337.71411042,9.796e-05,2]
[347805653,1736119832808,-5192.31911917,9.797e-05,2]
[347805654,1736119832817,-11630.84527343,9.798e-05,2]
[347805655,1736119832827,-337.71411042,9.799e-05,2]
[347805656,1736119832835,-17446.26791014,9.799e-05,2]
[347805657,1736119832845,-4675.62419632,9.813e-05,2]
[347805658,1736119832854,-1057.0,9.814e-05,2]
[347805659,1736119832864,-159.92600017,9.971e-05,2]
[347805660,1736119832874,-718.47582458,0.0001,2]
[347805662,1736119832882,-159.92600022,0.0001,2]
[347805664,1736119832891,-159.92600017,0.0001,2]
[347805666,1736119832900,-159.92600017,0.0001,2]
[347805668,1736119832910,-159.92600017,0.0001,2]
[347805670,1736119832919,-151.85,0.00010137,2]
[347805672,1736119832928,-500.0,0.00010168,2]
[347805673,1736119832936,-250.0,0.00010202,2]
[347805674,1736119832945,-1000.0,0.0001021,2]
[347805675,1736119832954,-250.0,0.00010219,2]
[347805676,1736119832963,-159.92600017,0.00010264,2]
[347805677,1736119832972,-1057.0,0.00010304,2]
[347805678,1736119832981,-217.45,0.00010522,2]
[347805679,1736119832990,-1480.55,0.00010548,2]
[347805680,1736119832999,-159.92600017,0.00010557,2]
[347805681,1736119833008,-1475.86,0.00010676,2]
[347805682,1736119833017,-150.0,0.00010701,2]
[347805683,1736119833026,-150.0,0.00010701,2]
[347805684,1736119833035,-782.43,0.0001073,2]
[347805685,1736119833043,-150.0,0.00010758,2]
[347805686,1736119833053,-3018.0,0.00010799,2]
[347805687,1736119833063,-162.89,0.00010799,2]
[347805689,1736119833072,-150.0,0.00010815,2]
[347805691,1736119833082,-150.0,0.00010815,2]
[347805692,1736119833091,-1057.0,0.00010819,2]
[347805693,1736119833099,-167.43,0.00010821,2]
[347805694,1736119833109,-1494.71,0.00010846,2]
[347805695,1736119833119,-159.92600017,0.0001085,2]
[347805696,1736119833128,-150.0,0.00010871,2]
[347805697,1736119833138,-150.0,0.000109,2]
[347805698,1736119833147,-150.0,0.00010928,2]
[347805699,1736119833156,-150.0,0.00010959,2]
[347805700,1736119833165,-150.0,0.00010984,2]
[347805701,1736119833175,-400.0,0.00010986,2]
[347805702,1736119833185,-550.0,0.00011,2]
[347805703,1736119833194,-170.0,0.00011,2]
[347805704,1736119833203,-150.0,0.00011041,2]
[347805705,1736119833213,-1498.65,0.00011055,2]
[347805706,1736119833222,-150.0,0.00011098,2]
[347805707,1736119833232,-150.0,0.00011098,2]
[347805708,1736119833241,-159.92600017,0.00011143,2]
[347805709,1736119833251,-150.0,0.00011154,2]
[347805710,1736119833264,-150.0,0.00011178,2]
[347805711,1736119833274,-317.55,0.00011178,2]
[347805712,1736119833283,-151.37,0.00011178,2]
[347805713,1736119833293,-5512.0,0.00011188,2]
[347805714,1736119833303,-150.0,0.00011211,2]
[347805715,1736119833312,-170.0,0.00011233,2]
[347805716,1736119833322,-500.0,0.00011264,2]
[347805717,1736119833335,-700.0,0.00011264,2]
[347805718,1736119833345,-150.0,0.00011268,2]
[347805719,1736119833354,-150.0,0.00011296,2]
[347805720,1736119833364,-150.0,0.00011324,2]
[347805721,1736119833375,-1057.0,0.0001136,2]
[347805722,1736119833384,-150.0,0.00011381,2]
[347805723,1736119833394,-452.759,0.000114,2]
[347805724,1736119833404,-159.92600017,0.00011436,2]
[347805725,1736119833414,-150.0,0.00011437,2]
[347805726,1736119833423,-1000.0,0.00011486,2]
[347805727,1736119833437,-150.0,0.00011494,2]
[347805728,1736119833447,-150.0,0.00011494,2]
[347805729,1736119833457,-2751.0,0.00011507,2]
[347805730,1736119833467,-170.0,0.00011507,2]
[347805731,1736119833478,-500.0,0.00011532,2]
[347805732,1736119833489,-552.2,0.00011532,2]
[347805733,1736119833498,-500.0,0.00011532,2]
[347805734,1736119833508,-150.0,0.00011551,2]
[347805735,1736119833518,-1487.49,0.00011578,2]
[347805736,1736119833527,-150.0,0.00011607,2]
[347805737,1736119833537,-200.0,0.00011611,2]
[347805738,1736119833547,-500.0,0.0001163,2]
[347805739,1736119833556,-500.0,0.0001163,2]
[347805740,1736119833566,-500.0,0.0001163,2]
[347805741,1736119833576,-500.0,0.0001163,2]
[347805742,1736119833586,-500.0,0.0001163,2]
[347805743,1736119833595,-500.0,0.0001163,2]